fUSD/lending_fUSD_20260531
["ID","MTS","AMOUNT","RATE_DAILY","PERIOD"]
[423493315,1780163449000,-151.0,0.00035616,7]
[423493316,1780163449000,-151.0,0.00035616,7]
[423493313,1780163449000,-151.0,0.00035616,7]
[423493324,1780163449000,-4752.960668,0.00035616,7]
[423493307,1780163449000,-160.855205,0.00035616,7]
[423493309,1780163449000,-290.134187,0.00035616,7]
[423493308,1780163449000,-160.855212,0.00035616,7]
[423493304,1780163449000,-160.855205,0.00035616,7]
[423493305,1780163449000,-151.0,0.00035616,7]
[423493317,1780163449000,-496.78705,0.00035616,7]
[423493310,1780163449000,-290.134187,0.00035616,7]
[423493322,1780163449000,-4752.960664,0.00035616,7]
[423493332,1780163449000,-213.522652,0.00035616,7]
[423493323,1780163449000,-4752.960664,0.00035616,7]
[423493321,1780163449000,-4752.960664,0.00035616,7]
[423493319,1780163449000,-496.78705,0.00035616,7]
[423493325,1780163449000,-151.0,0.00035616,7]
[423493328,1780163449000,-213.522652,0.00035616,7]
[423493327,1780163449000,-208.075309,0.00035616,7]
[423493337,1780163449000,-151.0,0.00035616,7]
[423493336,1780163449000,-151.0,0.00035616,7]
[423493326,1780163449000,-208.075309,0.00035616,7]
[423493338,1780163449000,-22881.92531617,0.00035616,10]
[423493329,1780163449000,-208.075309,0.00035616,7]
[423493330,1780163449000,-213.522652,0.00035616,7]
[423493331,1780163449000,-208.075313,0.00035616,7]
[423493306,1780163449000,-160.855205,0.00035616,7]
[423493320,1780163449000,-496.787054,0.00035616,7]
[423493303,1780163449000,-413.704853,0.00035616,7]
[423493275,1780163449000,-300.56957656,0.0003532,2]
[423493302,1780163449000,-413.70486,0.00035616,7]
[423493333,1780163449000,-213.522661,0.00035616,7]
[423493276,1780163449000,-300.0,0.0003532,2]
[423493279,1780163449000,-1679.55,0.000354,14]
[423493274,1780163449000,-300.0,0.0003532,2]
[423493277,1780163449000,-300.0,0.0003532,2]
[423493280,1780163449000,-660.51000109,0.0003541,88]
[423493283,1780163449000,-500.0,0.00035535,2]
[423493281,1780163449000,-1679.55,0.000355,14]
[423493278,1780163449000,-301.06704068,0.0003532,2]
[423493282,1780163449000,-631.28,0.000355,30]
[423493285,1780163449000,-161.0,0.00035594,30]
[423493284,1780163449000,-154.0,0.00035594,30]
[423493287,1780163449000,-184.0,0.00035594,30]
[423493298,1780163449000,-151.0,0.00035616,7]
[423493299,1780163449000,-151.0,0.00035616,7]
[423493292,1780163449000,-152.0,0.00035596,30]
[423493286,1780163449000,-705.0,0.00035594,30]
[423493289,1780163449000,-209.0,0.00035596,30]
[423493290,1780163449000,-215.0,0.00035596,30]
[423493293,1780163449000,-360.0,0.00035596,30]
[423493295,1780163449000,-5800.0,0.00035616,2]
[423493288,1780163449000,-170.0,0.00035596,30]
[423493294,1780163449000,-5800.0,0.00035608,2]
[423493297,1780163449000,-150.0,0.00035616,60]
[423493291,1780163449000,-329.0,0.00035596,30]
[423493296,1780163449000,-3424.64105182,0.00035616,2]
[423493301,1780163449000,-413.70486,0.00035616,7]
[423493311,1780163449000,-290.134187,0.00035616,7]
[423493312,1780163449000,-290.134187,0.00035616,7]
[423493300,1780163449000,-413.70486,0.00035616,7]
[423493335,1780163449000,-151.0,0.00035616,7]
[423493339,1780163449000,-151.0,0.00035616,7]
[423493340,1780163449000,-171.414746,0.00035616,7]
[423493372,1780163449000,-2602.431324,0.00035616,7]
[423493374,1780163449000,-2602.431324,0.00035616,7]
[423493375,1780163449000,-2602.431324,0.00035616,7]
[423493373,1780163449000,-2602.431324,0.00035616,7]
[423493379,1780163449000,-2602.431324,0.00035616,7]
[423493380,1780163449000,-2602.431324,0.00035616,7]
[423493389,1780163449000,-2602.431324,0.00035616,7]
[423493378,1780163449000,-2602.431324,0.00035616,7]
[423493390,1780163449000,-2602.431321,0.00035616,7]
[423493383,1780163449000,-2602.431324,0.00035616,7]
[423493384,1780163449000,-2602.431324,0.00035616,7]
[423493385,1780163449000,-2602.431324,0.00035616,7]
[423493386,1780163449000,-2602.431324,0.00035616,7]
[423493387,1780163449000,-2602.431324,0.00035616,7]
[423493371,1780163449000,-2602.431324,0.00035616,7]
[423493382,1780163449000,-2602.431324,0.00035616,7]
[423493388,1780163449000,-2602.431324,0.00035616,7]
[423493391,1780163449000,-2028.545884,0.00035616,7]
[423493403,1780163449000,-2028.545884,0.00035616,7]
[423493394,1780163449000,-2028.545884,0.00035616,7]
[423493392,1780163449000,-2028.545884,0.00035616,7]
[423493393,1780163449000,-2028.545884,0.00035616,7]
[423493402,1780163449000,-2028.545884,0.00035616,7]
[423493334,1780163449000,-238.640509,0.00035616,7]
[423493396,1780163449000,-2028.545884,0.00035616,7]
[423493397,1780163449000,-2028.545884,0.00035616,7]
[423493399,1780163449000,-2028.545884,0.00035616,7]
[423493401,1780163449000,-2028.545884,0.00035616,7]
[423493398,1780163449000,-2028.545884,0.00035616,7]
[423493400,1780163449000,-2028.545884,0.00035616,7]
[423493381,1780163449000,-2602.431324,0.00035616,7]
[423493376,1780163449000,-2602.431324,0.00035616,7]
[423493395,1780163449000,-2028.545884,0.00035616,7]
[423493368,1780163449000,-500.0,0.00035616,7]
[423493369,1780163449000,-151.0,0.00035616,7]
[423493350,1780163449000,-500.0,0.00035616,7]
[423493351,1780163449000,-500.0,0.00035616,7]
[423493343,1780163449000,-500.0,0.00035616,7]
[423493342,1780163449000,-500.0,0.00035616,7]
[423493341,1780163449000,-151.0,0.00035616,7]
[423493345,1780163449000,-500.0,0.00035616,7]
[423493344,1780163449000,-500.0,0.00035616,7]
[423493348,1780163449000,-500.0,0.00035616,7]
[423493346,1780163449000,-500.0,0.00035616,7]
[423493347,1780163449000,-500.0,0.00035616,7]
[423493352,1780163449000,-500.0,0.00035616,7]
[423493357,1780163449000,-500.0,0.00035616,7]
[423493355,1780163449000,-500.0,0.00035616,7]
[423493349,1780163449000,-500.0,0.00035616,7]
[423493356,1780163449000,-500.0,0.00035616,7]
[423493354,1780163449000,-500.0,0.00035616,7]
[423493370,1780163449000,-163.11799,0.00035616,7]
[423493366,1780163449000,-312.91531836,0.00035616,7]
[423493367,1780163449000,-500.0,0.00035616,7]
[423493353,1780163449000,-500.0,0.00035616,7]
[423493364,1780163449000,-500.0,0.00035616,7]
[423493377,1780163449000,-2602.431324,0.00035616,7]
[423493365,1780163449000,-500.0,0.00035616,7]
[423493358,1780163449000,-500.0,0.00035616,7]
[423493363,1780163449000,-500.0,0.00035616,7]
[423493361,1780163449000,-500.0,0.00035616,7]
[423493362,1780163449000,-500.0,0.00035616,7]
[423493360,1780163449000,-500.0,0.00035616,7]
[423493359,1780163449000,-500.0,0.00035616,7]
[423493437,1780163450000,-151.0,0.00035616,7]
[423493434,1780163450000,-151.0,0.00035616,7]
[423493436,1780163450000,-151.0,0.00035616,7]
[423493442,1780163450000,-342.443392,0.00035616,7]
[423493438,1780163450000,-151.0,0.00035616,7]
[423493439,1780163450000,-151.0,0.00035616,7]
[423493441,1780163450000,-151.0,0.00035616,7]
[423493433,1780163450000,-297.076785,0.00035616,7]
[423493432,1780163450000,-151.0,0.00035616,7]
[423493435,1780163450000,-151.0,0.00035616,7]
[423493440,1780163450000,-151.0,0.00035616,7]
[423493450,1780163450000,-342.443392,0.00035616,7]
[423493455,1780163450000,-350.0,0.00035766,39]
[423493454,1780163450000,-152.0,0.00035758,7]
[423493443,1780163450000,-263.260644,0.00035616,7]
[423493446,1780163450000,-342.443392,0.00035616,7]
[423493445,1780163450000,-442.681723,0.00035616,7]
[423493447,1780163450000,-442.681723,0.00035616,7]
[423493452,1780163450000,-646.0,0.00035622,13]
[423493448,1780163450000,-342.443392,0.00035616,7]
[423493451,1780163450000,-442.681723,0.00035616,7]
[423493453,1780163450000,-582.42,0.0003567,98]
[423493430,1780163450000,-151.0,0.00035616,7]
[423493444,1780163450000,-342.443392,0.00035616,7]
[423493431,1780163450000,-151.0,0.00035616,7]
[423493411,1780163450000,-213.32,0.00035616,2]
[423493427,1780163450000,-151.0,0.00035616,7]
[423493456,1780163450000,-300.0,0.00035776,7]
[423493404,1780163450000,-2028.545884,0.00035616,7]
[423493408,1780163450000,-2028.545884,0.00035616,7]
[423493406,1780163450000,-2028.545884,0.00035616,7]
[423493410,1780163450000,-2028.5458884,0.00035616,7]
[423493405,1780163450000,-2028.545884,0.00035616,7]
[423493407,1780163450000,-2028.545884,0.00035616,7]
[423493413,1780163450000,-151.0,0.00035616,7]
[423493416,1780163450000,-151.0,0.00035616,7]
[423493409,1780163450000,-2028.545884,0.00035616,7]
[423493414,1780163450000,-151.0,0.00035616,7]
[423493423,1780163450000,-151.0,0.00035616,7]
[423493412,1780163450000,-151.0,0.00035616,7]
[423493419,1780163450000,-151.0,0.00035616,7]
[423493417,1780163450000,-151.0,0.00035616,7]
[423493428,1780163450000,-151.0,0.00035616,7]
[423493418,1780163450000,-151.0,0.00035616,7]
[423493421,1780163450000,-151.0,0.00035616,7]
[423493420,1780163450000,-151.0,0.00035616,7]
[423493429,1780163450000,-151.0,0.00035616,7]
[423493422,1780163450000,-151.0,0.00035616,7]
[423493425,1780163450000,-151.0,0.00035616,7]
[423493426,1780163450000,-151.0,0.00035616,7]
[423493424,1780163450000,-151.0,0.00035616,7]
[423493415,1780163450000,-153.670873,0.00035616,7]
[423493460,1780163450000,-816.3156,0.00035837,2]
[423493449,1780163450000,-442.681723,0.00035616,7]
[423493462,1780163450000,-250.1,0.000359,120]
[423493492,1780163450000,-2411.264,0.00037063,47]
[423493489,1780163450000,-350.0,0.00036849,5]
[423493491,1780163450000,-250.1,0.000369,120]
[423493485,1780163450000,-442.103,0.00036733,2]
[423493484,1780163450000,-646.0,0.00036731,14]
[423493487,1780163450000,-582.42,0.0003676,120]
[423493488,1780163450000,-588.80919599,0.00036822,2]
[423493496,1780163450000,-200.0,0.000372,15]
[423493495,1780163450000,-164.37326,0.00037189,17]
[423493507,1780163450000,-714.0,0.00037265,3]
[423493506,1780163450000,-928.26091419,0.00037244,2]
[423493494,1780163450000,-2000.0,0.000371,7]
[423493497,1780163450000,-693.70304349,0.000372,120]
[423493505,1780163450000,-158.3379102,0.00037229,2]
[423493499,1780163450000,-693.70304348,0.000372,120]
[423493501,1780163450000,-829.0,0.000372,2]
[423493502,1780163450000,-375.63552826,0.000372,30]
[423493503,1780163450000,-375.63552825,0.000372,30]
[423493504,1780163450000,-375.63552825,0.000372,30]
[423493508,1780163450000,-646.0,0.00037286,14]
[423493510,1780163450000,-151.0,0.000373,14]
[423493511,1780163450000,-151.0,0.00037301,14]
[423493509,1780163450000,-582.42,0.000373,60]
[423493461,1780163450000,-350.0,0.0003589,5]
[423493498,1780163450000,-693.70304348,0.000372,120]
[423493486,1780163450000,-816.3156,0.00036733,2]
[423493500,1780163450000,-693.70304348,0.000372,120]
[423493493,1780163450000,-201.672,0.00037063,47]
[423493464,1780163450000,-200.0,0.000359,13]
[423493458,1780163450000,-152.0,0.00035832,7]
[423493459,1780163450000,-442.103,0.00035837,2]
[423493466,1780163450000,-151.8,0.00036153,30]
[423493457,1780163450000,-372.24772429,0.00035798,2]
[423493467,1780163450000,-646.0,0.00036177,13]
[423493463,1780163450000,-1900.0,0.000359,13]
[423493512,1780163450000,-469793.88123326,0.00037304,2]
[423493468,1780163450000,-200.0,0.000362,14]
[423493465,1780163450000,-200.0,0.000359,13]
[423493478,1780163450000,-444.02,0.00036362,60]
[423493480,1780163450000,-11801.44376659,0.000364,120]
[423493470,1780163450000,-800.0,0.00036244,13]
[423493481,1780163450000,-40082.0,0.000364,30]
[423493483,1780163450000,-150.0,0.0003653,60]
[423493482,1780163450000,-204.41634674,0.00036466,60]
[423493476,1780163450000,-4054.12,0.00036362,60]
[423493479,1780163450000,-251.65559573,0.00036366,2]
[423493473,1780163450000,-800.0,0.00036244,13]
[423493474,1780163450000,-800.0,0.00036244,13]
[423493475,1780163450000,-806.15912236,0.00036244,13]
[423493477,1780163450000,-667.62,0.00036362,60]
[423493471,1780163450000,-800.0,0.00036244,13]
[423493469,1780163450000,-582.42,0.0003621,114]
[423493472,1780163450000,-800.0,0.00036244,13]
[423493490,1780163450000,-150.0,0.0003688,2]
[423493516,1780163451000,-500.0,0.00013698,2]
[423493513,1780163451000,-2207.58043309,0.00037304,2]
[423493514,1780163451000,-2956.9255839,0.0001255,2]
[423493515,1780163451000,-500.0,0.00013698,2]
[423493517,1780163451000,-500.0,0.00013698,2]
[423493519,1780163451000,-500.0,0.00013698,2]
[423493520,1780163451000,-500.0,0.00014257,2]
[423493522,1780163451000,-500.0,0.00014999,2]
[423493521,1780163451000,-500.0,0.00014999,2]
[423493523,1780163451000,-500.0,0.00014999,2]
[423493524,1780163451000,-500.0,0.00014999,2]
[423493525,1780163451000,-216.0829,0.00027397,2]
[423493518,1780163451000,-500.0,0.00013698,2]
[423493541,1780163452000,-442.681723,0.00035616,7]
[423493540,1780163452000,-342.443392,0.00035616,7]
[423493542,1780163452000,-342.443392,0.00035616,7]
[423493545,1780163452000,-442.681723,0.00035616,7]
[423493548,1780163452000,-342.443392,0.00035616,7]
[423493544,1780163452000,-342.443392,0.00035616,7]
[423493543,1780163452000,-442.681723,0.00035616,7]
[423493551,1780163452000,-396.446606,0.00037304,2]
[423493546,1780163452000,-342.443392,0.00035616,7]
[423493549,1780163452000,-186.70568435,0.000372,30]
[423493550,1780163452000,-13285.40043793,0.00037304,2]
[423493547,1780163452000,-442.681723,0.00035616,7]
[423493537,1780163452000,-442.681723,0.00035616,7]
[423493536,1780163452000,-442.681723,0.00035616,7]
[423493538,1780163452000,-342.443392,0.00035616,7]
[423493535,1780163452000,-342.443392,0.00035616,7]
[423493534,1780163452000,-216.0829,0.00031883,7]
[423493533,1780163452000,-216.0829,0.0003013,7]
[423493532,1780163452000,-822.7,0.00027711,7]
[423493530,1780163452000,-216.0829,0.00027397,2]
[423493529,1780163452000,-216.0829,0.00027397,2]
[423493531,1780163452000,-822.7,0.0002755,30]
[423493528,1780163452000,-216.0829,0.00027397,2]
[423493526,1780163452000,-216.0829,0.00027397,2]
[423493527,1780163452000,-19126.52,0.00027397,10]
[423493552,1780163452000,-330.03,0.00023999,2]
[423493539,1780163452000,-442.681723,0.00035616,7]
[423493557,1780163452000,-54.8011112,0.00028033,30]
[423493570,1780163452000,-442.681723,0.00035616,7]
[423493554,1780163452000,-531.73,0.00027872,2]
[423493576,1780163452000,-219.66,0.0002755,2]
[423493555,1780163452000,-248.13460149,0.00028033,30]
[423493579,1780163452000,-342.443392,0.00035616,7]
[423493580,1780163452000,-442.681723,0.00035616,7]
[423493582,1780163452000,-442.681723,0.00035616,7]
[423493581,1780163452000,-342.443392,0.00035616,7]
[423493577,1780163452000,-318.0,0.0002818,10]
[423493578,1780163452000,-152.0,0.00029615,7]
[423493575,1780163452000,-3638.0,0.00025627,2]
[423493573,1780163452000,-2581.64946023,0.00016347,2]
[423493572,1780163452000,-375.2761236,0.00016347,2]
[423493574,1780163452000,-3638.0,0.00022627,2]
[423493569,1780163452000,-342.443392,0.00035616,7]
[423493571,1780163452000,-51203.07005138,0.00037304,2]
[423493583,1780163452000,-185.137807,0.00035616,7]
[423493559,1780163452000,-216.0829,0.0003013,7]
[423493566,1780163452000,-342.443392,0.00035616,7]
[423493565,1780163452000,-442.681723,0.00035616,7]
[423493564,1780163452000,-342.443392,0.00035616,7]
[423493562,1780163452000,-339.17277242,0.00035616,7]
[423493567,1780163452000,-442.681723,0.00035616,7]
[423493563,1780163452000,-342.443392,0.00035616,7]
[423493556,1780163452000,-519.76428731,0.00028033,30]
[423493561,1780163452000,-103.50895058,0.00035616,7]
[423493560,1780163452000,-216.082904,0.00031883,7]
[423493553,1780163452000,-290.97,0.00027872,2]
[423493558,1780163452000,-822.7,0.00028194,7]
[423493568,1780163452000,-342.443392,0.00035616,7]
[423493604,1780163453000,-800.0,0.00037656,60]
[423493619,1780163453000,-151.8,0.00038125,30]
[423493607,1780163453000,-350.0,0.00037808,5]
[423493605,1780163453000,-500.0,0.00037656,60]
[423493610,1780163453000,-250.1,0.000379,120]
[423493609,1780163453000,-646.0,0.00037841,15]
[423493608,1780163453000,-582.42,0.0003784,86]
[423493612,1780163453000,-155.0,0.00038007,3]
[423493617,1780163453000,-151.0,0.00038079,14]
[423493613,1780163453000,-164.37,0.00038014,120]
[423493615,1780163453000,-1834.01100645,0.00038043,120]
[423493614,1780163453000,-1834.01100645,0.00038043,120]
[423493618,1780163453000,-4633.76354224,0.00038089,2]
[423493616,1780163453000,-350.0,0.00038072,2]
[423493621,1780163453000,-98719.9975726,0.00038189,2]
[423493606,1780163453000,-350.0,0.00037658,2]
[423493611,1780163453000,-2000.0,0.000379,7]
[423493602,1780163453000,-816.3157,0.00037629,2]
[423493589,1780163453000,-442.681718,0.00035616,7]
[423493601,1780163453000,-442.103,0.00037629,2]
[423493623,1780163453000,-200.0,0.000382,15]
[423493584,1780163453000,-342.443382,0.00035616,7]
[423493586,1780163453000,-185.137807,0.00035616,7]
[423493587,1780163453000,-442.681723,0.00035616,7]
[423493585,1780163453000,-442.681723,0.00035616,7]
[423493599,1780163453000,-3550.0,0.00037627,2]
[423493588,1780163453000,-185.137807,0.00035616,7]
[423493592,1780163453000,-228232.35343034,0.00037304,2]
[423493590,1780163453000,-185.137807,0.00035616,7]
[423493591,1780163453000,-185.137807,0.00035616,7]
[423493598,1780163453000,-163.0,0.0003761,11]
[423493597,1780163453000,-40082.0,0.000376,30]
[423493594,1780163453000,-150.0,0.00037443,60]
[423493595,1780163453000,-150.0,0.00037467,120]
[423493596,1780163453000,-150.0,0.00037592,120]
[423493593,1780163453000,-350.0,0.00037344,2]
[423493600,1780163453000,-932.0,0.00037627,2]
[423493603,1780163453000,-500.0,0.00037656,60]
[423493620,1780163453000,-2592.31347536,0.00038188,10]
[423493656,1780163453000,-1000.0,0.0003877,90]
[423493625,1780163453000,-1512.78329523,0.00038329,120]
[423493644,1780163453000,-200.0,0.000386,14]
[423493658,1780163453000,-2110.0,0.000388,2]
[423493648,1780163453000,-1900.0,0.000387,14]
[423493647,1780163453000,-350.0,0.00038685,2]
[423493649,1780163453000,-200.0,0.000387,14]
[423493651,1780163453000,-150.0,0.0003872,120]
[423493650,1780163453000,-200.0,0.000387,14]
[423493639,1780163453000,-200.0,0.000385,14]
[423493654,1780163453000,-1071.0,0.00038755,5]
[423493653,1780163453000,-150.0,0.00038743,120]
[423493657,1780163453000,-1001.0,0.00038795,7]
[423493655,1780163453000,-350.0,0.00038767,5]
[423493661,1780163453000,-219.66,0.0002758,7]
[423493662,1780163453000,-31.96680989,0.00028627,2]
[423493660,1780163453000,-403.23446449,0.00028627,2]
[423493622,1780163453000,-47626.3857053,0.00038189,2]
[423493652,1780163453000,-150.0,0.00038724,2]
[423493646,1780163453000,-1122.82185534,0.00038621,90]
[423493659,1780163453000,-32834.2059133,0.000388,30]
[423493640,1780163453000,-1000.0,0.00038513,90]
[423493628,1780163453000,-150.0,0.00038356,60]
[423493643,1780163453000,-1900.0,0.000386,14]
[423493624,1780163453000,-350.0,0.00038304,2]
[423493626,1780163453000,-1512.78329523,0.00038329,120]
[423493627,1780163453000,-171.84105977,0.00038334,120]
[423493629,1780163453000,-500.0,0.00038356,120]
[423493631,1780163453000,-169.27567026,0.00038356,15]
[423493632,1780163453000,-582.42,0.0003838,105]
[423493635,1780163453000,-800.0,0.00038478,60]
[423493630,1780163453000,-500.0,0.00038356,120]
[423493633,1780163453000,-260577.56,0.00038385,8]
[423493637,1780163453000,-1900.0,0.000385,14]
[423493638,1780163453000,-200.0,0.000385,14]
[423493642,1780163453000,-201.64,0.00038571,30]
[423493636,1780163453000,-1000.0,0.00038497,90]
[423493645,1780163453000,-200.0,0.000386,14]
[423493641,1780163453000,-350.0,0.00038525,2]
[423493634,1780163453000,-646.0,0.00038396,16]
[423493663,1780163506000,193.21,0.00028034,120]
[423493666,1780164031000,544.44102779,0.00025946,120]
[423493667,1780164032000,544.44102779,0.00026091,120]
[423493676,1780164419000,-557.48549544,0.0001,2]
[423493680,1780164631000,-764.85,0.00011,2]
[423493679,1780164631000,-173.7,0.00010571,2]
[423493722,1780164632000,-500.0,0.00012002,2]
[423493714,1780164632000,-274.88,0.000118,2]
[423493717,1780164632000,-274.88,0.00011929,2]
[423493716,1780164632000,-159.94,0.00011866,2]
[423493712,1780164632000,-274.88,0.00011736,2]
[423493718,1780164632000,-274.88,0.00011993,2]
[423493715,1780164632000,-274.88,0.00011864,2]
[423493719,1780164632000,-500.0,0.00012002,2]
[423493721,1780164632000,-500.0,0.00012002,2]
[423493720,1780164632000,-500.0,0.00012002,2]
[423493723,1780164632000,-388.56670401,0.00012002,2]
[423493740,1780164632000,-500.0,0.00012002,2]
[423493725,1780164632000,-500.0,0.00012002,2]
[423493726,1780164632000,-403.39597363,0.00012002,2]
[423493728,1780164632000,-500.0,0.00012002,2]
[423493730,1780164632000,-500.0,0.00012002,2]
[423493731,1780164632000,-500.0,0.00012002,2]
[423493727,1780164632000,-500.0,0.00012002,2]
[423493732,1780164632000,-500.0,0.00012002,2]
[423493729,1780164632000,-500.0,0.00012002,2]
[423493733,1780164632000,-500.0,0.00012002,2]
[423493735,1780164632000,-500.0,0.00012002,2]
[423493713,1780164632000,-165.31,0.000118,2]
[423493724,1780164632000,-500.0,0.00012002,2]
[423493711,1780164632000,-3349.82303727,0.00011679,2]
[423493684,1780164632000,-150.0,0.00011111,2]
[423493709,1780164632000,-274.88,0.00011607,2]
[423493681,1780164632000,-7786.76401672,0.00011,2]
[423493683,1780164632000,-70.21179807,0.00011,2]
[423493682,1780164632000,-1378.17418521,0.00011,2]
[423493685,1780164632000,-200.23059144,0.00011129,2]
[423493686,1780164632000,-200.0,0.00011153,2]
[423493689,1780164632000,-163.06,0.00011197,2]
[423493687,1780164632000,-496.58,0.00011164,2]
[423493691,1780164632000,-1600.0,0.00011206,2]
[423493694,1780164632000,-163.56,0.00011226,2]
[423493695,1780164632000,-300.0,0.00011226,2]
[423493692,1780164632000,-150.0,0.00011226,2]
[423493697,1780164632000,-668.71890638,0.00011226,2]
[423493696,1780164632000,-531.28109362,0.00011226,2]
[423493699,1780164632000,-2000.0,0.00011231,2]
[423493701,1780164632000,-2702.35,0.00011362,2]
[423493703,1780164632000,-533.14,0.00011421,2]
[423493702,1780164632000,-701.53,0.00011396,2]
[423493700,1780164632000,-169.46,0.00011295,2]
[423493705,1780164632000,-3136.87215605,0.00011505,2]
[423493704,1780164632000,-159.94,0.00011484,2]
[423493708,1780164632000,-166.67,0.00011518,2]
[423493707,1780164632000,-1084.12784395,0.00011505,2]
[423493736,1780164632000,-500.0,0.00012002,2]
[423493710,1780164632000,-274.88,0.00011672,2]
[423493739,1780164632000,-500.0,0.00012002,2]
[423493768,1780164632000,-500.0,0.00012002,2]
[423493738,1780164632000,-150.0,0.00012002,2]
[423493769,1780164632000,-88.79790839,0.00012002,2]
[423493767,1780164632000,-260.40445829,0.00012002,2]
[423493772,1780164632000,-500.0,0.00012002,2]
[423493771,1780164632000,-500.0,0.00012002,2]
[423493770,1780164632000,-456.60907431,0.00012002,2]
[423493774,1780164632000,-548.30384288,0.00012002,2]
[423493773,1780164632000,-500.0,0.00012002,2]
[423493775,1780164632000,-150.0,0.00012002,2]
[423493776,1780164632000,-6214.67,0.00012055,2]
[423493777,1780164632000,-274.88,0.00012057,2]
[423493778,1780164632000,-274.88,0.00012122,2]
[423493779,1780164632000,-218.60383963,0.00012143,2]
[423493780,1780164632000,-209.3568988,0.00012156,2]
[423493781,1780164632000,-151.94227789,0.00012165,2]
[423493782,1780164632000,-320.65180915,0.00012165,2]
[423493784,1780164632000,-500.0,0.00012165,2]
[423493785,1780164632000,-541.35105181,0.00012165,2]
[423493783,1780164632000,-500.0,0.00012165,2]
[423493786,1780164632000,-500.0,0.00012165,2]
[423493787,1780164632000,-254.51310827,0.00012165,2]
[423493788,1780164632000,-500.0,0.00012165,2]
[423493789,1780164632000,-1961.95487208,0.00012166,2]
[423493790,1780164632000,-403.98,0.00010999,2]
[423493765,1780164632000,-500.0,0.00012002,2]
[423493766,1780164632000,-239.59554171,0.00012002,2]
[423493734,1780164632000,-199.01434305,0.00012002,2]
[423493761,1780164632000,-500.0,0.00012002,2]
[423493764,1780164632000,-500.0,0.00012002,2]
[423493737,1780164632000,-158.79341703,0.00012002,2]
[423493742,1780164632000,-500.0,0.00012002,2]
[423493744,1780164632000,-500.0,0.00012002,2]
[423493743,1780164632000,-500.0,0.00012002,2]
[423493741,1780164632000,-500.0,0.00012002,2]
[423493747,1780164632000,-500.0,0.00012002,2]
[423493745,1780164632000,-500.0,0.00012002,2]
[423493746,1780164632000,-500.0,0.00012002,2]
[423493749,1780164632000,-500.0,0.00012002,2]
[423493748,1780164632000,-500.0,0.00012002,2]
[423493751,1780164632000,-500.0,0.00012002,2]
[423493750,1780164632000,-609.45801931,0.00012002,2]
[423493753,1780164632000,-500.0,0.00012002,2]
[423493755,1780164632000,-500.0,0.00012002,2]
[423493754,1780164632000,-500.0,0.00012002,2]
[423493757,1780164632000,-500.0,0.00012002,2]
[423493759,1780164632000,-500.0,0.00012002,2]
[423493756,1780164632000,-500.0,0.00012002,2]
[423493760,1780164632000,-500.0,0.00012002,2]
[423493758,1780164632000,-500.0,0.00012002,2]
[423493762,1780164632000,-500.0,0.00012002,2]
[423493763,1780164632000,-500.0,0.00012002,2]
[423493752,1780164632000,-500.0,0.00012002,2]
[423493797,1780164637000,-500.0,0.00010999,2]
[423493796,1780164637000,-96.02,0.00010999,2]